fUST/lending_fUST_20250907
["ID","MTS","AMOUNT","RATE_DAILY","PERIOD"]
[384078610,1757251850855,-480.0,0.00013972,2]
[384078612,1757251850864,-151.0,0.00013972,2]
[384078614,1757251850874,-480.0,0.00013972,2]
[384078616,1757251850883,-606.63,0.00013972,2]
[384078618,1757251850893,-480.0,0.00013972,2]
[384078620,1757251850902,-424.65,0.00013972,2]
[384078622,1757251850911,-480.0,0.00013972,2]
[384078624,1757251850921,-151.0,0.00013972,2]
[384078626,1757251850931,-675.2,0.00013972,2]
[384078628,1757251850940,-480.0,0.00013972,2]
[384078630,1757251850950,-1076.6,0.00013972,2]
[384078632,1757251850960,-480.0,0.00013972,2]
[384078634,1757251850970,-634.78,0.00013972,2]
[384078636,1757251850980,-930.24,0.00013972,2]
[384078638,1757251850989,-948.54,0.00013972,2]
[384078640,1757251851000,-723.67,0.00013972,2]
[384078642,1757251851010,-878.12,0.00013972,2]
[384078644,1757251851020,-480.0,0.00013972,2]
[384078646,1757251851029,-684.37,0.00013972,2]
[384078648,1757251851039,-531.33,0.00013972,2]
[384078650,1757251851049,-391.6,0.00013972,2]
[384078652,1757251851059,-978.36,0.00013972,2]
[384078654,1757251851069,-480.0,0.00013972,2]
[384078656,1757251851078,-1183.54,0.00013972,2]
[384078658,1757251851088,-266.9,0.00013972,2]
[384078660,1757251851098,-480.0,0.00013972,2]
[384078662,1757251851108,-480.0,0.00013972,2]
[384078664,1757251851117,-480.0,0.00013972,2]
[384078666,1757251851127,-480.0,0.00013972,2]
[384078668,1757251851137,-480.0,0.00013972,2]
[384078670,1757251851147,-480.0,0.00013972,2]
[384078672,1757251851156,-480.0,0.00013972,2]
[384078674,1757251851167,-1426.97,0.00013972,2]
[384078676,1757251851177,-675.32,0.00013972,2]
[384078678,1757251851187,-705.1,0.00013972,2]
[384078680,1757251851196,-480.0,0.00013972,2]
[384078682,1757251851206,-480.0,0.00013972,2]
[384078684,1757251851215,-393.02,0.00013972,2]
[384078686,1757251851225,-3565.67,0.00013972,2]
[384078688,1757251851234,-480.0,0.00013972,2]
[384078690,1757251851244,-375.12,0.00013972,2]
[384078692,1757251851253,-576.48,0.00013972,2]
[384078695,1757251851263,-480.0,0.00013972,2]
[384078696,1757251851272,-480.0,0.00013972,2]
[384078698,1757251851281,-628.95,0.00013972,2]
[384078700,1757251851290,-1047.45,0.00013972,2]
[384078702,1757251851300,-1025.22,0.00013972,2]
[384078704,1757251851309,-1105.61,0.00013972,2]
[384078706,1757251851321,-480.0,0.00013972,2]
[384078708,1757251851331,-843.59,0.00013972,2]
[384078710,1757251851340,-292.01,0.00013972,2]
[384078712,1757251851349,-480.0,0.00013972,2]
[384078714,1757251851358,-480.0,0.00013972,2]
[384078716,1757251851368,-1798.83,0.00013972,2]
[384078718,1757251851377,-480.0,0.00013972,2]
[384078720,1757251851386,-608.47,0.00013972,2]
[384078722,1757251851396,-41920.28,0.00013972,2]
[384078724,1757251851406,-573.39,0.00013972,2]
[384078726,1757251851416,-480.0,0.00013972,2]
[384078728,1757251851425,-480.0,0.00013972,2]
[384078730,1757251851434,-3416.33,0.00013972,2]
[384078732,1757251851444,-3127.34,0.00013972,2]
[384078734,1757251851454,-480.0,0.00013972,2]
[384078736,1757251851463,-150.73,0.00013972,2]
[384078738,1757251851473,-595.2,0.00013972,2]
[384078740,1757251851482,-480.0,0.00013972,2]
[384078742,1757251851492,-1124.5,0.00013972,2]
[384078744,1757251851501,-2030.04,0.00013972,2]
[384078746,1757251851511,-499.65,0.00013972,2]
[384078748,1757251851520,-1527.6,0.00013972,2]
[384078750,1757251851530,-645.75,0.00013972,2]
[384078752,1757251851541,-338.37454525,0.00013972,2]
[384078754,1757251851553,-480.0,0.00013972,2]
[384078756,1757251851563,-807.3,0.00013972,2]
[384078758,1757251851572,-480.0,0.00013972,2]
[384078760,1757251851582,-438.19554265,0.00013972,2]
[384078762,1757251851592,-12907.55,0.00013972,2]
[384078764,1757251851601,-918.49,0.00013972,2]
[384078766,1757251851611,-894.25,0.00013972,2]
[384078767,1757251851621,-656.41,0.00013972,2]
[384078768,1757251851631,-480.0,0.00013972,2]
[384078769,1757251851640,-480.0,0.00013972,2]
[384078770,1757251851649,-1322.99,0.00013972,2]
[384078771,1757251851659,-480.0,0.00013972,2]
[384078772,1757251851667,-3283.87,0.00013972,2]
[384078773,1757251851676,-480.0,0.00013972,2]
[384078774,1757251851686,-2528.26,0.00013972,2]
[384078775,1757251851694,-2125.81,0.00013972,2]
[384078776,1757251851703,-480.0,0.00013972,2]
[384078777,1757251851712,-3483.63,0.00013972,2]
[384078778,1757251851722,-1288.26,0.00013972,2]
[384078779,1757251851732,-511.98,0.00013972,2]
[384078780,1757251851742,-1627.19,0.00013972,2]
[384078781,1757251851751,-480.0,0.00013972,2]
[384078782,1757251851760,-480.0,0.00013972,2]
[384078783,1757251851770,-838.0,0.00013972,2]
[384078784,1757251851779,-346.19,0.00013972,2]
[384078785,1757251851788,-549.31,0.00013972,2]
[384078786,1757251851797,-3026.2,0.00013972,2]
[384078787,1757251851806,-1681.36,0.00013972,2]
[384078788,1757251851815,-6420.51,0.00013972,2]
[384078789,1757251851824,-480.0,0.00013972,2]
[384078790,1757251851834,-554.55,0.00013972,2]
[384078791,1757251851843,-480.0,0.00013972,2]
[384078792,1757251851852,-480.0,0.00013972,2]
[384078793,1757251851862,-480.0,0.00013972,2]
[384078794,1757251851871,-512.06,0.00013972,2]
[384078795,1757251851880,-151.0,0.00013972,2]
[384078796,1757251851889,-2805.86,0.00013972,2]
[384078797,1757251851898,-480.0,0.00013972,2]
[384078798,1757251851907,-480.0,0.00013972,2]
[384078799,1757251851916,-549.1167669,0.00013972,2]
[384078800,1757251851925,-963.51,0.00013972,2]
[384078801,1757251851934,-716.71,0.00013972,2]
[384078802,1757251851943,-669.87,0.00013972,2]
[384078803,1757251851952,-1215.65,0.00013972,2]
[384078804,1757251851961,-480.0,0.00013972,2]
[384078805,1757251851971,-480.0,0.00013972,2]
[384078806,1757251851980,-905.47,0.00013972,2]
[384078807,1757251851989,-1979.33,0.00013972,2]
[384078808,1757251851998,-1133.46,0.00013972,2]
[384078809,1757251852008,-1062.24,0.00013972,2]
[384078811,1757251852017,-2357.34,0.00013972,2]
[384078812,1757251852026,-650.59,0.00013972,2]
[384078814,1757251852035,-2919.91,0.00013972,2]
[384078816,1757251852044,-4336.06,0.00013972,2]
[384078818,1757251852054,-2865.65,0.00013972,2]
[384078820,1757251852064,-822.65,0.00013972,2]
[384078822,1757251852073,-1187.26,0.00013972,2]
[384078835,1757251852182,-736.13,0.00013972,2]
[384078837,1757251852192,-480.0,0.00013972,2]
[384078839,1757251852202,-480.0,0.00013972,2]
[384078841,1757251852212,-628.49,0.00013972,2]
[384078843,1757251852221,-555.8,0.00013972,2]
[384078845,1757251852231,-480.0,0.00013972,2]
[384078847,1757251852241,-1011.54,0.00013972,2]
[384078849,1757251852250,-2632.88,0.00013972,2]
[384078851,1757251852260,-818.49,0.00013972,2]
[384078853,1757251852269,-480.0,0.00013972,2]
[384078855,1757251852278,-480.0,0.00013972,2]
[384078857,1757251852288,-1042.29,0.00013972,2]
[384078859,1757251852297,-180.61,0.00013972,2]
[384078861,1757251852307,-480.0,0.00013972,2]
[384078863,1757251852316,-1036.85,0.00013972,2]
[384078864,1757251852325,-1096.1,0.00013972,2]
[384078866,1757251852335,-480.0,0.00013972,2]
[384078868,1757251852345,-5247.53,0.00013972,2]
[384078870,1757251852355,-480.0,0.00013972,2]
[384078873,1757251852365,-917.02,0.00013972,2]
[384078874,1757251852374,-532.99,0.00013972,2]
[384078876,1757251852384,-500.0,0.00013972,2]
[384078878,1757251852394,-500.0,0.00013973,2]
[384078880,1757251852404,-243.75027178,0.00013973,2]
[384078882,1757251852414,-500.0,0.00013973,2]
[384078884,1757251852423,-500.0,0.00013973,2]
[384078886,1757251852432,-500.0,0.00013973,2]
[384078888,1757251852442,-620.5471961,0.00013973,2]
[384078890,1757251852451,-500.0,0.00013973,2]
[384078892,1757251852460,-500.0,0.00013973,2]
[384078894,1757251852470,-500.0,0.00013973,2]
[384078896,1757251852479,-500.0,0.00013973,2]
[384078897,1757251852488,-500.0,0.00013973,2]
[384078899,1757251852497,-500.0,0.00013973,2]
[384078901,1757251852506,-500.0,0.00013973,2]
[384078903,1757251852516,-151.0,0.00013973,2]
[384078905,1757251852525,-500.0,0.0001399,2]
[384078907,1757251852535,-100000.0,0.0001399,2]
[384078909,1757251852548,-151.0,0.0001399,2]
[384078911,1757251852559,-253.154088,0.0001399,2]
[384078913,1757251852568,-88882.79290684,0.00014,2]
[384078915,1757251852577,-3000.0,0.0001404,2]
[384078916,1757251852586,-756.05137112,0.00014058,2]
[384078918,1757251852595,-10574.65704845,0.00014186,2]
[384078920,1757251852605,-480.0,0.00014246,2]
[384078922,1757251852615,-588.61,0.00014246,2]
[384078924,1757251852625,-534.51,0.00014246,2]
[384078926,1757251852635,-480.0,0.00014246,2]
[384078928,1757251852644,-480.0,0.00014246,2]
[384078930,1757251852654,-480.0,0.00014246,2]
[384078932,1757251852663,-197.99548879,0.00014246,2]
[384078934,1757251852672,-497.51,0.00014246,2]
[384078936,1757251852682,-480.0,0.00014246,2]
[384078938,1757251852691,-648.04,0.00014246,2]
[384078940,1757251852701,-193.03,0.00014246,2]
[384078942,1757251852710,-480.0,0.00014246,2]
[384078944,1757251852719,-558.58,0.00014246,2]
[384078946,1757251852729,-480.0,0.00014246,2]
[384078948,1757251852738,-480.0,0.00014246,2]
[384078950,1757251852748,-649.16,0.00014246,2]
[384078952,1757251852758,-770.77,0.00014246,2]
[384078954,1757251852767,-480.0,0.00014246,2]
[384078955,1757251852777,-563.55,0.00014246,2]
[384078957,1757251852786,-520.46,0.00014246,2]
[384078959,1757251852796,-748.23,0.00014246,2]
[384078961,1757251852805,-457.12946167,0.00014246,2]
[384078963,1757251852815,-611.56,0.00014246,2]
[384078965,1757251852824,-652.72,0.00014246,2]
[384078967,1757251852834,-480.0,0.00014246,2]
[384078969,1757251852843,-562.52,0.00014246,2]
[384078971,1757251852852,-480.0,0.00014246,2]
[384078973,1757251852861,-480.0,0.00014246,2]
[384078975,1757251852874,-480.0,0.00014246,2]
[384078977,1757251852883,-480.0,0.00014246,2]
[384078979,1757251852893,-462.36,0.00014246,2]
[384078981,1757251852902,-480.0,0.00014246,2]
[384078983,1757251852912,-480.0,0.00014246,2]
[384078985,1757251852922,-480.0,0.00014246,2]
[384078987,1757251852931,-151.0,0.00014246,2]
[384078989,1757251852940,-675.2,0.00014246,2]
[384078991,1757251852950,-480.0,0.00014246,2]
[384078993,1757251852959,-1076.6,0.00014246,2]
[384078995,1757251852969,-480.0,0.00014246,2]
[384078997,1757251852979,-634.78,0.00014246,2]
[384078999,1757251852988,-930.24,0.00014246,2]
[384079001,1757251852997,-948.54,0.00014246,2]
[384079003,1757251853008,-723.67,0.00014246,2]
[384079005,1757251853017,-878.12,0.00014246,2]
[384079007,1757251853026,-480.0,0.00014246,2]
[384079008,1757251853035,-684.37,0.00014246,2]
[384079010,1757251853045,-531.33,0.00014246,2]
[384079012,1757251853055,-978.36,0.00014246,2]
[384079014,1757251853065,-301.12005457,0.00014246,2]
[384079016,1757251853074,-1183.54,0.00014246,2]
[384079018,1757251853084,-480.0,0.00014246,2]
[384079020,1757251853093,-480.0,0.00014246,2]
[384079022,1757251853103,-480.0,0.00014246,2]
[384079024,1757251853112,-578.62,0.00014246,2]
[384079026,1757251853121,-480.0,0.00014246,2]
[384079028,1757251853131,-480.0,0.00014246,2]
[384079030,1757251853141,-304.64,0.00014246,2]
[384079032,1757251853151,-1426.97,0.00014246,2]
[384079034,1757251853161,-675.32,0.00014246,2]
[384079036,1757251853170,-705.1,0.00014246,2]
[384079038,1757251853179,-480.0,0.00014246,2]
[384079040,1757251853188,-314.44,0.00014246,2]
[384079042,1757251853198,-3565.67,0.00014246,2]
[384079044,1757251853207,-230.12,0.00014246,2]
[384079046,1757251853216,-480.0,0.00014246,2]
[384079048,1757251853226,-576.48,0.00014246,2]
[384079049,1757251853236,-480.0,0.00014246,2]
[384079051,1757251853245,-628.95,0.00014246,2]
[384079053,1757251853255,-1047.45,0.00014246,2]
[384079055,1757251853265,-1025.22,0.00014246,2]
[384079057,1757251853274,-481.41,0.00014246,2]
[384079059,1757251853284,-1105.61,0.00014246,2]
[384079061,1757251853294,-843.59,0.00014246,2]
[384079063,1757251853304,-480.0,0.00014246,2]
[384079065,1757251853314,-480.0,0.00014246,2]
[384079067,1757251853323,-1798.83,0.00014246,2]
[384079069,1757251853333,-480.0,0.00014246,2]
[384079071,1757251853346,-608.47,0.00014246,2]
[384079073,1757251853356,-41920.28,0.00014246,2]
[384079075,1757251853366,-573.39,0.00014246,2]
[384079077,1757251853376,-480.0,0.00014246,2]
[384079079,1757251853386,-480.0,0.00014246,2]
[384079081,1757251853395,-3416.33,0.00014246,2]
[384079083,1757251853404,-3127.34,0.00014246,2]
[384079085,1757251853414,-480.0,0.00014246,2]
[384079087,1757251853424,-595.2,0.00014246,2]
[384079089,1757251853433,-480.0,0.00014246,2]
[384079091,1757251853442,-1124.5,0.00014246,2]
[384079093,1757251853452,-2030.04,0.00014246,2]
[384079095,1757251853462,-499.65,0.00014246,2]
[384079097,1757251853471,-1527.6,0.00014246,2]
[384079099,1757251853481,-645.75,0.00014246,2]
[384079101,1757251853490,-480.0,0.00014246,2]
[384079103,1757251853499,-807.3,0.00014246,2]
[384079105,1757251853509,-332.58,0.00014246,2]
[384079107,1757251853519,-12907.55,0.00014246,2]
[384079109,1757251853528,-918.49,0.00014246,2]
[384079111,1757251853539,-894.25,0.00014246,2]
[384079113,1757251853551,-656.41,0.00014246,2]
[384079115,1757251853560,-480.0,0.00014246,2]
[384079117,1757251853570,-480.0,0.00014246,2]
[384079119,1757251853580,-1322.99,0.00014246,2]
[384079121,1757251853589,-480.0,0.00014246,2]
[384079123,1757251853598,-3283.87,0.00014246,2]
[384079125,1757251853607,-480.0,0.00014246,2]
[384079127,1757251853617,-2528.26,0.00014246,2]
[384079129,1757251853627,-2125.81,0.00014246,2]
[384079130,1757251853636,-480.0,0.00014246,2]
[384079133,1757251853647,-473.52526957,0.00014246,2]
[384080174,1757252372353,480.72,2.74e-05,2]
[384080223,1757252570328,1409.19566571,0.00013061,2]
[384080224,1757252593711,842.54854444,0.00013061,2]
[384080324,1757252987208,320.68643153,0.00013095,2]
[384080330,1757253008632,57667.92715409,0.00013,2]
[384080333,1757253031927,-1114.08641614,0.00013326,2]
[384080334,1757253031939,-851.76978249,0.00013326,2]
[384080335,1757253031949,-300.0,0.00013498,2]
[384080336,1757253031959,-1200.0,0.00013498,2]
[384080337,1757253031969,-1200.0,0.00013499,2]
[384080338,1757253031979,-300.0,0.00013499,2]
[384080339,1757253031989,-300.0,0.00013499,2]
[384080340,1757253031998,-300.0,0.00013499,2]
[384080341,1757253032007,-300.0,0.00013499,2]
[384080343,1757253032018,-11930.78906338,0.000135,2]
[384080344,1757253032028,-1837.01662813,0.00013597,2]
[384080345,1757253032037,-670.27896546,0.00013597,2]
[384080346,1757253032046,-194.18103207,0.00013597,2]
[384080347,1757253032055,-670.27896542,0.00013597,2]
[384080348,1757253032065,-670.27896542,0.00013598,2]
[384080350,1757253032194,-670.27896542,0.00013598,2]
[384080351,1757253032205,-670.27896542,0.00013598,2]
[384080352,1757253032216,-225.15998828,0.00013598,2]
[384080353,1757253032225,-151.0,0.0001369,2]
[384080354,1757253032235,-500.0,0.0001369,2]
[384080355,1757253032245,-500.0,0.0001369,2]
[384080356,1757253032255,-500.0,0.0001369,2]
[384080357,1757253032264,-500.0,0.0001369,2]
[384080358,1757253032274,-500.0,0.0001369,2]
[384080359,1757253032284,-500.0,0.0001369,2]
[384080360,1757253032293,-500.0,0.0001369,2]
[384080361,1757253032305,-500.0,0.0001369,2]
[384080362,1757253032314,-500.0,0.0001369,2]
[384080363,1757253032324,-500.0,0.0001369,2]
[384080364,1757253032333,-500.0,0.0001369,2]
[384080365,1757253032343,-500.0,0.0001369,2]
[384080366,1757253032353,-500.0,0.0001369,2]
[384080367,1757253032364,-2258.97598669,0.00013694,2]
[384080368,1757253032374,-500.0,0.00013697,2]
[384080369,1757253032383,-500.0,0.00013697,2]
[384080370,1757253032394,-500.0,0.00013697,2]
[384080371,1757253032404,-500.0,0.00013697,2]
[384080372,1757253032414,-570.0,0.00013697,2]
[384080373,1757253032424,-500.0,0.00013697,2]
[384080374,1757253032434,-237.39232228,0.00013697,2]
[384080375,1757253032444,-500.0,0.00013697,2]
[384080376,1757253032455,-500.0,0.00013697,2]
[384080377,1757253032465,-312.28504579,0.00013697,2]
[384080378,1757253032475,-500.0,0.00013697,2]
[384080379,1757253032485,-500.0,0.00013697,2]
[384080380,1757253032495,-500.0,0.00013697,2]
[384080381,1757253032505,-500.0,0.00013697,2]
[384080382,1757253032514,-500.0,0.00013697,2]
[384080383,1757253032524,-500.0,0.00013697,2]
[384080384,1757253032534,-500.0,0.00013697,2]
[384080385,1757253032543,-500.0,0.00013697,2]
[384080386,1757253032553,-460.07127438,0.00013697,2]
[384080387,1757253032563,-500.0,0.00013697,2]
[384080388,1757253032572,-500.0,0.00013697,2]
[384080389,1757253032582,-334.82107913,0.00013697,2]
[384080390,1757253032591,-500.0,0.00013697,2]
[384080391,1757253032600,-500.0,0.00013697,2]
[384080392,1757253032611,-560.47959227,0.00013697,2]
[384080393,1757253032620,-500.0,0.00013697,2]
[384080394,1757253032630,-500.0,0.00013697,2]
[384080395,1757253032639,-500.0,0.00013697,2]
[384080396,1757253032649,-500.0,0.00013697,2]
[384080397,1757253032659,-500.0,0.00013697,2]
[384080398,1757253032668,-423.25047318,0.00013697,2]
[384080399,1757253032678,-500.0,0.00013697,2]
[384080401,1757253032688,-500.0,0.00013697,2]
[384080403,1757253032697,-500.0,0.00013697,2]
[384080405,1757253032706,-348.05147392,0.00013697,2]
[384080407,1757253032715,-500.0,0.00013697,2]
[384080409,1757253032725,-500.0,0.00013697,2]
[384080411,1757253032734,-500.0,0.00013697,2]
[384080413,1757253032744,-500.0,0.00013697,2]
[384080415,1757253032754,-500.0,0.00013697,2]
[384080417,1757253032764,-500.0,0.00013697,2]
[384080419,1757253032774,-500.0,0.00013697,2]
[384080421,1757253032783,-500.0,0.00013697,2]
[384080423,1757253032793,-500.0,0.00013697,2]
[384080426,1757253032803,-500.0,0.00013697,2]
[384080427,1757253032813,-500.0,0.00013697,2]
[384080430,1757253032823,-500.0,0.00013697,2]
[384080432,1757253032832,-500.0,0.00013697,2]
[384080434,1757253032842,-500.0,0.00013697,2]
[384080436,1757253032852,-500.0,0.00013697,2]
[384080438,1757253032861,-500.0,0.00013697,2]
[384080440,1757253032870,-500.0,0.00013697,2]
[384080441,1757253032880,-500.0,0.00013697,2]
[384080443,1757253032890,-500.0,0.00013697,2]
[384080445,1757253032899,-164.34640055,0.00013697,2]
[384080447,1757253032909,-500.0,0.00013697,2]
[384080449,1757253032918,-500.0,0.00013697,2]
[384080451,1757253032932,-500.0,0.00013697,2]
[384080453,1757253032942,-500.0,0.00013697,2]
[384080455,1757253032951,-500.0,0.00013697,2]
[384080457,1757253032961,-264.19856759,0.00013697,2]
[384080459,1757253032971,-500.0,0.00013697,2]
[384080461,1757253032980,-500.0,0.00013697,2]
[384080463,1757253032990,-642.98078923,0.00013697,2]
[384080464,1757253033001,-500.0,0.00013697,2]
[384080466,1757253033010,-500.0,0.00013697,2]
[384080468,1757253033019,-500.0,0.00013697,2]
[384080470,1757253033029,-500.0,0.00013697,2]
[384080472,1757253033038,-500.0,0.00013697,2]
[384080474,1757253033048,-500.0,0.00013697,2]
[384080476,1757253033058,-500.0,0.00013697,2]
[384080477,1757253033068,-500.0,0.00013697,2]
[384080479,1757253033078,-500.0,0.00013697,2]
[384080481,1757253033087,-500.0,0.00013697,2]
[384080483,1757253033097,-500.0,0.00013697,2]
[384080485,1757253033106,-500.0,0.00013697,2]
[384080487,1757253033116,-200.0,0.00013697,2]
[384080489,1757253033126,-193.22870208,0.00013697,2]
[384080491,1757253033135,-480.0,0.00013698,2]
[384080493,1757253033144,-480.0,0.00013698,2]
[384080495,1757253033154,-480.0,0.00013698,2]
[384080497,1757253033164,-480.0,0.00013698,2]
[384080499,1757253033173,-480.0,0.00013698,2]
[384080501,1757253033183,-480.0,0.00013698,2]
[384080503,1757253033193,-480.0,0.00013698,2]
[384080504,1757253033202,-558.78,0.00013698,2]
[384080506,1757253033212,-480.0,0.00013698,2]
[384080508,1757253033222,-480.0,0.00013698,2]
[384080510,1757253033233,-480.0,0.00013698,2]
[384080512,1757253033242,-413.14174658,0.00013698,2]
[384080514,1757253033252,-151.12,0.00013698,2]
[384080516,1757253033261,-480.0,0.00013698,2]
[384080518,1757253033271,-480.0,0.00013698,2]
[384080520,1757253033280,-548.76,0.00013698,2]
[384080522,1757253033290,-480.0,0.00013698,2]
[384080524,1757253033300,-308.33,0.00013698,2]
[384080525,1757253033309,-480.0,0.00013698,2]
[384080527,1757253033319,-480.0,0.00013698,2]
[384080529,1757253033329,-480.0,0.00013698,2]
[384080531,1757253033338,-480.0,0.00013698,2]
[384080533,1757253033348,-480.0,0.00013698,2]
[384080535,1757253033358,-480.0,0.00013698,2]
[384080537,1757253033368,-480.0,0.00013698,2]
[384080539,1757253033378,-480.0,0.00013698,2]
[384080541,1757253033387,-649.53,0.00013698,2]
[384080543,1757253033396,-504.42,0.00013698,2]
[384080545,1757253033406,-480.0,0.00013698,2]
[384080547,1757253033416,-480.0,0.00013698,2]
[384080549,1757253033426,-751.13,0.00013698,2]
[384080551,1757253033436,-514.01,0.00013698,2]
[384080553,1757253033446,-554.84,0.00013698,2]
[384080555,1757253033456,-551.82,0.00013698,2]
[384080557,1757253033466,-480.0,0.00013698,2]
[384080558,1757253033475,-480.0,0.00013698,2]
[384080560,1757253033484,-480.0,0.00013698,2]
[384080562,1757253033494,-480.0,0.00013698,2]
[384080564,1757253033505,-480.0,0.00013698,2]
[384080566,1757253033515,-480.0,0.00013698,2]
[384080568,1757253033525,-480.0,0.00013698,2]
[384080570,1757253033535,-480.0,0.00013698,2]
[384080572,1757253033544,-480.0,0.00013698,2]
[384080574,1757253033554,-520.8,0.00013698,2]
[384080576,1757253033563,-480.0,0.00013698,2]
[384080577,1757253033572,-480.0,0.00013698,2]
[384080579,1757253033582,-480.0,0.00013698,2]
[384080581,1757253033592,-480.0,0.00013698,2]
[384080583,1757253033602,-893.96,0.00013698,2]
[384080585,1757253033611,-480.0,0.00013698,2]
[384080587,1757253033620,-574.36,0.00013698,2]
[384080589,1757253033630,-929.97,0.00013698,2]
[384080591,1757253033640,-633.21,0.00013698,2]
[384080593,1757253033650,-480.0,0.00013698,2]
[384080595,1757253033660,-726.39,0.00013698,2]
[384080597,1757253033670,-480.0,0.00013698,2]
[384080599,1757253033679,-480.0,0.00013698,2]
[384080600,1757253033689,-480.0,0.00013698,2]
[384080602,1757253033699,-610.8,0.00013698,2]
[384080604,1757253033709,-480.0,0.00013698,2]
[384080606,1757253033719,-490.4360983,0.00013698,2]
[384080608,1757253033729,-480.0,0.00013698,2]
[384080610,1757253033738,-480.0,0.00013698,2]
[384080612,1757253033748,-482.83658517,0.00013698,2]
[384080614,1757253033757,-575.43,0.00013698,2]
[384080616,1757253033767,-480.0,0.00013698,2]
[384080618,1757253033776,-480.0,0.00013698,2]
[384080620,1757253033786,-480.0,0.00013698,2]
[384080622,1757253033795,-480.0,0.00013698,2]
[384080624,1757253033805,-480.0,0.00013698,2]
[384080626,1757253033814,-768.36,0.00013698,2]
[384080628,1757253033824,-480.0,0.00013698,2]
[384080630,1757253033833,-484.91,0.00013698,2]
[384080631,1757253033843,-480.0,0.00013698,2]
[384080633,1757253033853,-1062.03,0.00013698,2]
[384080635,1757253033863,-598.83,0.00013698,2]
[384080637,1757253033873,-480.0,0.00013698,2]
[384080640,1757253033883,-618.80413277,0.00013698,2]
[384080641,1757253033893,-480.0,0.00013698,2]
[384080643,1757253033903,-526.89653165,0.00013698,2]
[384080645,1757253033912,-246.46360044,0.00013698,2]
[384080647,1757253033927,-856.06,0.00013698,2]
[384080649,1757253033936,-480.0,0.00013698,2]
[384080651,1757253033946,-480.0,0.00013698,2]
[384080653,1757253033956,-482.42463493,0.00013698,2]
[384080655,1757253033967,-480.0,0.00013698,2]
[384080657,1757253033977,-810.29,0.00013698,2]
[384080659,1757253033986,-480.0,0.00013698,2]
[384080661,1757253033996,-553.14,0.00013698,2]
[384080663,1757253034006,-480.0,0.00013698,2]
[384080665,1757253034015,-480.0,0.00013698,2]
[384080667,1757253034025,-480.0,0.00013698,2]
[384080669,1757253034035,-636.97,0.00013698,2]
[384080671,1757253034045,-480.0,0.00013698,2]
[384080673,1757253034054,-480.0,0.00013698,2]
[384080674,1757253034065,-480.0,0.00013698,2]
[384080676,1757253034075,-1035.59,0.00013698,2]
[384080678,1757253034084,-758.15,0.00013698,2]
[384080680,1757253034094,-480.0,0.00013698,2]
[384080682,1757253034104,-480.0,0.00013698,2]
[384080684,1757253034114,-707.04,0.00013698,2]
[384080686,1757253034124,-480.0,0.00013698,2]